fUST/lending_fUST_20241017
["ID","MTS","AMOUNT","RATE_DAILY","PERIOD"]
[340369881,1729107222641,-516.04410755,0.00041917,60]
[340369882,1729107222679,-500.0,0.00041917,60]
[340369883,1729107222714,-500.0,0.00041917,60]
[340369884,1729107222750,-500.0,0.00041917,60]
[340369885,1729107222788,-627.43888745,0.00041917,60]
[340369886,1729107222825,-500.0,0.00041917,60]
[340369887,1729107222860,-504.38774952,0.00041917,60]
[340369888,1729107222895,-500.0,0.00041917,60]
[340369889,1729107222932,-349.1423012,0.00041917,60]
[340369890,1729107222969,-500.0,0.00041917,60]
[340369891,1729107223007,-500.0,0.00041917,60]
[340369892,1729107223047,-500.0,0.00041917,60]
[340369893,1729107223088,-500.0,0.00041917,60]
[340369894,1729107223127,-500.0,0.00041917,60]
[340369895,1729107223165,-500.0,0.00041917,60]
[340369896,1729107223204,-500.0,0.00041917,60]
[340369897,1729107223243,-500.0,0.00041917,60]
[340369898,1729107223280,-500.0,0.00041917,60]
[340369899,1729107223321,-500.0,0.00041917,60]
[340369900,1729107223357,-1392.5,0.00041917,60]
[340369901,1729107223395,-500.0,0.00041917,60]
[340369902,1729107223431,-523.53857848,0.00041917,60]
[340369903,1729107223465,-500.0,0.00041917,60]
[340369904,1729107223498,-500.0,0.00041917,60]
[340369905,1729107223533,-474.92144461,0.00041917,60]
[340369906,1729107223567,-500.0,0.00041917,60]
[340369907,1729107223599,-500.0,0.00041917,60]
[340369908,1729107223634,-532.01597892,0.00041917,60]
[340369909,1729107223668,-500.0,0.00041917,60]
[340369910,1729107223703,-500.0,0.00041917,60]
[340369911,1729107223738,-512.3483619,0.00041917,60]
[340369912,1729107223774,-500.0,0.00041917,60]
[340369913,1729107223810,-500.0,0.00041917,60]
[340369914,1729107223844,-500.0,0.00041917,60]
[340369915,1729107223881,-500.0,0.00041917,60]
[340369916,1729107223916,-294.18113139,0.00041917,60]
[340369917,1729107223952,-500.0,0.00041917,60]
[340369918,1729107223988,-500.0,0.00041917,60]
[340369919,1729107224024,-500.0,0.00041917,60]
[340369920,1729107224063,-500.0,0.00041917,60]
[340369921,1729107224101,-500.0,0.00041917,60]
[340369922,1729107224142,-500.0,0.00041917,60]
[340369923,1729107224180,-500.0,0.00041917,60]
[340369924,1729107224219,-500.0,0.00041917,60]
[340369925,1729107224256,-500.0,0.00041917,60]
[340369926,1729107224294,-500.0,0.00041917,60]
[340369927,1729107224332,-635.35758741,0.00041917,60]
[340369928,1729107224367,-500.0,0.00041917,60]
[340369929,1729107224402,-500.0,0.00041917,60]
[340369930,1729107224435,-500.0,0.00041917,60]
[340369931,1729107224470,-500.0,0.00041917,60]
[340369932,1729107224506,-500.0,0.00041917,60]
[340369933,1729107224541,-500.0,0.00041917,60]
[340369934,1729107224576,-500.0,0.00041917,60]
[340369935,1729107224609,-500.0,0.00041917,60]
[340369936,1729107224644,-1022.92,0.00041917,60]
[340369937,1729107224681,-500.0,0.00041917,60]
[340369938,1729107224718,-784.03,0.00041917,60]
[340369939,1729107224754,-500.0,0.00041917,60]
[340369940,1729107224790,-1867.39,0.00041917,60]
[340369941,1729107224829,-512.66019148,0.00041917,60]
[340369942,1729107224866,-500.0,0.00041917,60]
[340369943,1729107224909,-789.11,0.00041917,60]
[340369944,1729107224946,-500.0,0.00041917,60]
[340369945,1729107224991,-500.0,0.00041917,60]
[340369946,1729107225028,-500.0,0.00041917,60]
[340369947,1729107225067,-507.0371761,0.00041917,60]
[340369948,1729107225107,-1205.33,0.00041917,60]
[340369949,1729107225144,-500.0,0.00041917,60]
[340369950,1729107225181,-500.0,0.00041917,60]
[340369951,1729107225218,-434.21862806,0.00041917,60]
[340369952,1729107225254,-500.0,0.00041917,60]
[340369953,1729107225290,-500.0,0.00041917,60]
[340369954,1729107225327,-500.0,0.00041917,60]
[340369955,1729107225363,-500.0,0.00041917,60]
[340369956,1729107225595,-500.0,0.00041917,60]
[340369957,1729107225638,-500.0,0.00041917,60]
[340369958,1729107225676,-512.96596956,0.00041917,60]
[340369959,1729107225716,-500.0,0.00041917,60]
[340369960,1729107225755,-500.0,0.00041917,60]
[340369961,1729107225793,-500.0,0.00041917,60]
[340369962,1729107225831,-500.0,0.00041917,60]
[340369963,1729107225869,-500.0,0.00041917,60]
[340369964,1729107225909,-3664.05,0.00041917,60]
[340369965,1729107225946,-403.86539794,0.00041917,60]
[340369966,1729107225983,-931.18,0.00041917,60]
[340369967,1729107226019,-559.86,0.00041917,60]
[340369968,1729107226057,-195.15519965,0.00041917,60]
[340369969,1729107226098,-500.0,0.00041917,60]
[340369970,1729107226136,-500.0,0.00041917,60]
[340369971,1729107226174,-500.0,0.00041917,60]
[340369972,1729107226212,-267.96595377,0.00041917,60]
[340369973,1729107226249,-500.0,0.00041917,60]
[340369974,1729107226285,-500.0,0.00041917,60]
[340369975,1729107226322,-500.0,0.00041917,60]
[340369976,1729107226357,-500.0,0.00041917,60]
[340369977,1729107226395,-565.84,0.00041917,60]
[340369978,1729107226428,-735.99,0.00041917,60]
[340369979,1729107226463,-500.0,0.00041917,60]
[340369980,1729107226496,-2000.0,0.00041917,60]
[340369981,1729107226530,-2776.97,0.00041917,60]
[340369982,1729107226566,-500.0,0.00041917,60]
[340369983,1729107226602,-500.0,0.00041917,60]
[340369984,1729107226635,-500.0,0.00041917,60]
[340369985,1729107226670,-500.0,0.00041917,60]
[340369986,1729107226706,-603.19297379,0.00041917,60]
[340369987,1729107226741,-500.0,0.00041917,60]
[340369988,1729107226777,-500.0,0.00041917,60]
[340369989,1729107226814,-6776.89,0.00041917,60]
[340369990,1729107226849,-500.0,0.00041917,60]
[340369991,1729107226884,-500.0,0.00041917,60]
[340369992,1729107226921,-500.0,0.00041917,60]
[340369993,1729107226958,-500.0,0.00041917,60]
[340369994,1729107226992,-500.0,0.00041917,60]
[340369995,1729107227028,-181.7410284,0.00041917,60]
[340369996,1729107227063,-506.14022768,0.00041917,60]
[340369997,1729107227098,-500.0,0.00041917,60]
[340369998,1729107227135,-500.0,0.00041917,60]
[340369999,1729107227171,-500.0,0.00041917,60]
[340370000,1729107227207,-500.0,0.00041917,60]
[340370001,1729107227244,-500.0,0.00041917,60]
[340370002,1729107227283,-522.28,0.00041917,60]
[340370003,1729107227318,-500.0,0.00041917,60]
[340370004,1729107227352,-500.0,0.00041917,60]
[340370005,1729107227386,-500.0,0.00041917,60]
[340370006,1729107227420,-500.0,0.00041917,60]
[340370007,1729107227458,-500.0,0.00041917,60]
[340370008,1729107227495,-500.0,0.00041917,60]
[340370009,1729107227530,-500.0,0.00041917,60]
[340370010,1729107227565,-3576.83,0.00041917,60]
[340370011,1729107227599,-500.0,0.00041917,60]
[340370012,1729107227632,-500.0,0.00041917,60]
[340370013,1729107227664,-510.57471498,0.00041917,60]
[340370014,1729107227697,-500.0,0.00041917,60]
[340370015,1729107227730,-500.0,0.00041917,60]
[340370016,1729107227763,-500.0,0.00041917,60]
[340370017,1729107227795,-500.0,0.00041917,60]
[340370018,1729107227835,-203.66207507,0.00041917,60]
[340370019,1729107227869,-504.26861687,0.00041917,60]
[340370020,1729107227904,-500.0,0.00041917,60]
[340370021,1729107227938,-4599.54,0.00041917,60]
[340370022,1729107227973,-508.27365043,0.00041917,60]
[340370023,1729107228008,-500.0,0.00041917,60]
[340370024,1729107228043,-500.0,0.00041917,60]
[340370025,1729107228080,-500.0,0.00041917,60]
[340370026,1729107228117,-500.0,0.00041917,60]
[340370027,1729107228154,-500.0,0.00041917,60]
[340370028,1729107228190,-500.0,0.00041917,60]
[340370029,1729107228226,-500.0,0.00041917,60]
[340370030,1729107228263,-500.0,0.00041917,60]
[340370031,1729107228301,-500.0,0.00041917,60]
[340370032,1729107228338,-500.0,0.00041917,60]
[340370033,1729107228375,-500.0,0.00041917,60]
[340370034,1729107228411,-580.63,0.00041917,60]
[340370035,1729107228447,-3673.47,0.00041917,60]
[340370036,1729107228484,-500.0,0.00041917,60]
[340370037,1729107228520,-500.0,0.00041917,60]
[340370038,1729107228558,-500.0,0.00041917,60]
[340370039,1729107228593,-1000.0,0.00041917,60]
[340370040,1729107228629,-1927.49,0.00041917,60]
[340370041,1729107228667,-500.0,0.00041917,60]
[340370042,1729107228704,-516.99516246,0.00041917,60]
[340370043,1729107228741,-372.50900078,0.00041917,60]
[340370044,1729107228778,-500.0,0.00041917,60]
[340370045,1729107228815,-500.0,0.00041917,60]
[340370046,1729107228851,-500.0,0.00041917,60]
[340370047,1729107228887,-756.88,0.00041917,60]
[340370048,1729107228926,-529.33338225,0.00041917,60]
[340370049,1729107228964,-1192.08,0.00041917,60]
[340370050,1729107229003,-852.62,0.00041917,60]
[340370051,1729107229044,-500.0,0.00041917,60]
[340370052,1729107229081,-500.0,0.00041917,60]
[340370053,1729107229120,-500.0,0.00041917,60]
[340370054,1729107229157,-500.0,0.00041917,60]
[340370055,1729107229193,-593.68,0.00041917,60]
[340370056,1729107229230,-500.0,0.00041917,60]
[340370057,1729107229265,-628.55707056,0.00041917,60]
[340370058,1729107229300,-500.0,0.00041917,60]
[340370059,1729107229335,-500.0,0.00041917,60]
[340370060,1729107229370,-500.0,0.00041917,60]
[340370061,1729107229593,-500.0,0.00041917,60]
[340370062,1729107229631,-500.0,0.00041917,60]
[340370063,1729107229666,-954.7,0.00041917,60]
[340370064,1729107229701,-2109.52,0.00041917,60]
[340370065,1729107229738,-500.0,0.00041917,60]
[340370066,1729107229772,-500.0,0.00041917,60]
[340370067,1729107229809,-506.73069376,0.00041917,60]
[340370068,1729107229843,-500.0,0.00041917,60]
[340370069,1729107229879,-1517.17,0.00041917,60]
[340370070,1729107229916,-500.0,0.00041917,60]
[340370071,1729107229954,-500.0,0.00041917,60]
[340370072,1729107229990,-500.0,0.00041917,60]
[340370073,1729107230024,-2560.24,0.00041917,60]
[340370074,1729107230061,-603.9620454,0.00041917,60]
[340370075,1729107230098,-500.0,0.00041917,60]
[340370076,1729107230135,-588.45796169,0.00041917,60]
[340370077,1729107230171,-324.32971413,0.00041917,60]
[340370078,1729107230205,-500.0,0.00041917,60]
[340370079,1729107230240,-500.0,0.00041917,60]
[340370080,1729107230279,-2087.1,0.00041917,60]
[340370081,1729107230321,-500.0,0.00041917,60]
[340370082,1729107230362,-500.0,0.00041917,60]
[340370083,1729107230405,-208.7643978,0.00041917,60]
[340370084,1729107230445,-500.0,0.00041917,60]
[340370085,1729107230484,-500.0,0.00041917,60]
[340370086,1729107230523,-500.0,0.00041917,60]
[340370087,1729107230560,-664.37,0.00041917,60]
[340370088,1729107230595,-529.75,0.00041917,60]
[340370089,1729107230629,-500.0,0.00041917,60]
[340370090,1729107230665,-503.10948249,0.00041917,60]
[340370091,1729107230702,-399.79231416,0.00041917,60]
[340370092,1729107230740,-500.0,0.00041917,60]
[340370093,1729107230776,-554.05,0.00041917,60]
[340370094,1729107230815,-760.02,0.00041917,60]
[340370095,1729107230852,-500.0,0.00041917,60]
[340370096,1729107230888,-500.0,0.00041917,60]
[340370097,1729107230926,-500.0,0.00041917,60]
[340370098,1729107230964,-521.82818849,0.00041917,60]
[340370099,1729107231003,-572.44132023,0.00041917,60]
[340370100,1729107231039,-500.0,0.00041917,60]
[340370101,1729107231076,-500.0,0.00041917,30]
[340370102,1729107231113,-500.0,0.00041917,60]
[340370103,1729107231149,-500.0,0.00041917,60]
[340370104,1729107231185,-500.0,0.00041917,60]
[340370105,1729107231222,-500.0,0.00041917,60]
[340370106,1729107231258,-558.62206295,0.00041917,60]
[340370107,1729107231294,-500.0,0.00041917,60]
[340370108,1729107231334,-503.1035857,0.00041917,60]
[340370109,1729107231369,-500.0,0.00041917,60]
[340370110,1729107231405,-500.0,0.00041917,60]
[340370111,1729107231440,-500.0,0.00041917,60]
[340370112,1729107231475,-500.0,0.00041917,60]
[340370113,1729107231511,-500.0,0.00041917,60]
[340370114,1729107231545,-500.0,0.00041917,60]
[340370115,1729107231581,-500.0,0.00041917,60]
[340370116,1729107231617,-500.0,0.00041917,60]
[340370117,1729107231651,-500.0,0.00041917,60]
[340370118,1729107231687,-500.0,0.00041917,60]
[340370119,1729107231721,-1659.34,0.00041917,60]
[340370120,1729107231756,-500.0,0.00041917,60]
[340370121,1729107231792,-500.0,0.00041917,60]
[340370122,1729107231827,-500.0,0.00041917,60]
[340370123,1729107231861,-500.0,0.00041917,60]
[340370124,1729107231901,-635.25951849,0.00041917,60]
[340370125,1729107231937,-500.0,0.00041917,60]
[340370126,1729107231975,-500.0,0.00041917,60]
[340370127,1729107232012,-549.22671926,0.00041917,60]
[340370128,1729107232048,-500.0,0.00041917,60]
[340370129,1729107232085,-500.0,0.00041917,60]
[340370130,1729107232123,-500.0,0.00041917,60]
[340370131,1729107232161,-500.0,0.00041917,60]
[340370132,1729107232197,-500.0,0.00041917,60]
[340370133,1729107232236,-500.0,0.00041917,60]
[340370134,1729107232275,-500.0,0.00041917,60]
[340370135,1729107232312,-500.0,0.00041917,60]
[340370136,1729107232348,-500.0,0.00041917,60]
[340370137,1729107232384,-1402.53,0.00041917,60]
[340370138,1729107232418,-500.0,0.00041917,60]
[340370139,1729107232452,-500.0,0.00041917,60]
[340370140,1729107232487,-500.0,0.00041917,60]
[340370141,1729107232523,-1412.91,0.00041917,60]
[340370142,1729107232557,-1019.66,0.00041917,60]
[340370143,1729107232590,-500.0,0.00041917,60]
[340370144,1729107232625,-500.0,0.00041917,60]
[340370145,1729107232659,-500.0,0.00041917,60]
[340370146,1729107232696,-500.0,0.00041917,60]
[340370147,1729107232731,-500.0,0.00041917,60]
[340370148,1729107232764,-500.0,0.00041917,60]
[340370149,1729107232798,-2258.02,0.00041917,60]
[340370150,1729107232835,-500.0,0.00041917,60]
[340370151,1729107232868,-500.0,0.00041917,60]
[340370152,1729107232900,-500.0,0.00041917,60]
[340370153,1729107232934,-500.0,0.00041917,60]
[340370154,1729107232970,-1009.92,0.00041917,60]
[340370155,1729107233005,-500.0,0.00041917,60]
[340370156,1729107233037,-656.52,0.00041917,60]
[340370157,1729107233072,-500.0,0.00041917,60]
[340370158,1729107233107,-3437.62,0.00041917,60]
[340370159,1729107233145,-22901.97,0.00041917,60]
[340370160,1729107233180,-244.8279744,0.00041917,60]
[340370161,1729107233216,-500.0,0.00041917,60]
[340370162,1729107233249,-500.0,0.00041917,60]
[340370163,1729107233282,-458.33533226,0.00041917,60]
[340370164,1729107233314,-501.9994093,0.00041917,60]
[340370165,1729107233534,-500.0,0.00041917,60]
[340370166,1729107233572,-357.36953073,0.00041917,60]
[340370167,1729107233606,-500.0,0.00041917,60]
[340370168,1729107233640,-500.0,0.00041917,60]
[340370169,1729107233674,-1521.21,0.00041917,60]
[340370170,1729107233708,-500.0,0.00041917,60]
[340370171,1729107233744,-500.0,0.00041917,60]
[340370172,1729107233779,-500.0,0.00041917,60]
[340370173,1729107233816,-500.0,0.00041917,60]
[340370174,1729107233851,-1351.86,0.00041917,60]
[340370175,1729107233887,-500.0,0.00041917,60]
[340370176,1729107233926,-500.0,0.00041917,60]
[340370177,1729107233965,-19492.87,0.00041917,30]
[340370178,1729107234000,-500.0,0.00041917,60]
[340370179,1729107234037,-506.84866671,0.00041917,60]
[340370180,1729107234072,-500.0,0.00041917,60]
[340370181,1729107234109,-1143.45,0.00041917,60]
[340370182,1729107234147,-500.0,0.00041917,60]
[340370183,1729107234182,-500.0,0.00041917,60]
[340370184,1729107234217,-4186.608,0.0004197,120]
[340370185,1729107234252,-4186.609,0.0004197,120]
[340370186,1729107234286,-4186.609,0.0004197,120]
[340370187,1729107234320,-4186.608,0.0004197,120]
[340370188,1729107234355,-4186.609,0.0004197,120]
[340370189,1729107234391,-5000.0,0.00042,42]
[340370190,1729107234425,-3000.0,0.00042,120]
[340370191,1729107234459,-300.0,0.00042,120]
[340370192,1729107234497,-151.0,0.00042055,120]
[340370193,1729107234531,-500.0,0.00042191,60]
[340370194,1729107234565,-500.0,0.00042191,60]
[340370195,1729107234600,-2503.87,0.00042191,60]
[340370196,1729107234638,-500.0,0.00042191,60]
[340370197,1729107234672,-500.0,0.00042191,60]
[340370198,1729107234706,-500.0,0.00042191,60]
[340370199,1729107234740,-2145.33,0.00042191,60]
[340370200,1729107234774,-538.44336608,0.00042191,60]
[340370201,1729107234814,-500.0,0.00042191,60]
[340370202,1729107234848,-762.02,0.00042191,60]
[340370203,1729107234885,-354.1660657,0.00042191,60]
[340370204,1729107234921,-500.0,0.00042191,60]
[340370205,1729107234957,-500.0,0.00042191,60]
[340370206,1729107234994,-500.0,0.00042191,60]
[340370207,1729107235032,-500.0,0.00042191,60]
[340370208,1729107235068,-500.0,0.00042191,60]
[340370209,1729107235107,-513.25713338,0.00042191,60]
[340370210,1729107235144,-500.0,0.00042191,60]
[340370211,1729107235180,-512.59570228,0.00042191,60]
[340370212,1729107235214,-500.0,0.00042191,60]
[340370213,1729107235251,-500.0,0.00042191,60]
[340370214,1729107235286,-500.0,0.00042191,60]
[340370215,1729107235321,-500.0,0.00042191,60]
[340370216,1729107235355,-1355.88,0.00042191,60]
[340370217,1729107235389,-500.0,0.00042191,60]
[340370218,1729107235424,-500.0,0.00042191,60]
[340370219,1729107235459,-500.0,0.00042191,60]
[340370220,1729107235495,-1059.28,0.00042191,60]
[340370221,1729107235534,-500.0,0.00042191,60]
[340370222,1729107235569,-500.0,0.00042191,60]
[340370223,1729107235604,-500.0,0.00042191,60]
[340370224,1729107235637,-509.59037083,0.00042191,60]
[340370225,1729107235674,-500.0,0.00042191,60]
[340370226,1729107235708,-509.76760614,0.00042191,60]
[340370227,1729107235741,-500.0,0.00042191,60]
[340370228,1729107235777,-500.0,0.00042191,60]
[340370229,1729107235813,-500.0,0.00042191,60]
[340370230,1729107235848,-500.0,0.00042191,60]
[340370231,1729107235885,-500.0,0.00042191,60]
[340370232,1729107235918,-500.0,0.00042191,60]
[340370233,1729107235952,-500.0,0.00042191,60]
[340370234,1729107235986,-500.0,0.00042191,60]
[340370235,1729107236020,-500.0,0.00042191,60]
[340370236,1729107236053,-630.53,0.00042191,60]
[340370237,1729107236086,-500.0,0.00042191,60]
[340370238,1729107236118,-500.0,0.00042191,60]
[340370239,1729107236151,-500.0,0.00042191,60]
[340370240,1729107236183,-500.0,0.00042191,60]
[340370241,1729107236216,-500.0,0.00042191,60]
[340370242,1729107236250,-500.0,0.00042191,60]
[340370243,1729107236286,-500.0,0.00042191,60]
[340370244,1729107236323,-500.0,0.00042191,60]
[340370245,1729107236359,-543.77575421,0.00042191,60]
[340370246,1729107236399,-575.8,0.00042191,60]
[340370247,1729107236437,-511.78098618,0.00042191,60]
[340370248,1729107236474,-511.85122479,0.00042191,60]
[340370249,1729107236509,-500.0,0.00042191,60]
[340370250,1729107236546,-500.0,0.00042191,60]
[340370251,1729107236583,-1187.76,0.00042191,60]
[340370252,1729107236618,-781.96,0.00042191,60]
[340370253,1729107236655,-3448.75,0.00042191,60]
[340370254,1729107236690,-597.72156349,0.00042191,60]
[340370255,1729107236725,-500.0,0.00042191,60]
[340370256,1729107236760,-500.0,0.00042191,60]
[340370257,1729107236796,-500.0,0.00042191,60]
[340370258,1729107236835,-500.0,0.00042191,60]
[340370259,1729107236871,-500.0,0.00042191,60]
[340370260,1729107236906,-500.0,0.00042191,60]
[340370261,1729107236942,-2794.24,0.00042191,60]
[340370262,1729107236976,-534.1275274,0.00042191,60]
[340370263,1729107237011,-500.0,0.00042191,60]
[340370264,1729107237048,-313.05082505,0.00042191,60]
[340370265,1729107237083,-508.44961003,0.00042191,60]
[340370266,1729107237120,-500.0,0.00042191,60]
[340370267,1729107237156,-500.0,0.00042191,60]
[340370268,1729107237366,-500.0,0.00042191,60]
[340370269,1729107237408,-500.0,0.00042191,60]
[340370270,1729107237442,-500.0,0.00042191,60]
[340370271,1729107237476,-500.0,0.00042191,60]
[340370272,1729107237511,-500.0,0.00042191,60]
[340370273,1729107237545,-500.0,0.00042191,60]
[340370274,1729107237579,-500.0,0.00042191,60]
[340370275,1729107237611,-919.79,0.00042191,30]
[340370276,1729107237645,-1210.06,0.00042191,60]
[340370277,1729107237677,-500.0,0.00042191,60]
[340370278,1729107237709,-500.0,0.00042191,60]
[340370279,1729107237742,-500.0,0.00042191,60]
[340370280,1729107237776,-500.0,0.00042191,60]
[340370281,1729107237813,-500.0,0.00042191,60]
[340370282,1729107237848,-500.0,0.00042191,60]
[340370283,1729107237882,-500.0,0.00042191,60]
[340370284,1729107237917,-500.0,0.00042191,60]
[340370285,1729107237951,-180.55079719,0.00042191,60]
[340370286,1729107237984,-700.6,0.00042191,60]
[340370287,1729107238017,-500.0,0.00042191,60]
[340370288,1729107238049,-500.0,0.00042191,60]
[340370289,1729107238084,-500.0,0.00042191,60]
[340370290,1729107238121,-500.0,0.00042191,60]
[340370291,1729107238157,-1353.07,0.00042191,60]
[340370292,1729107238192,-500.0,0.00042191,60]
[340370293,1729107238227,-500.0,0.00042191,60]
[340370294,1729107238260,-500.0,0.00042191,60]
[340370295,1729107238294,-500.0,0.00042191,60]
[340370296,1729107238328,-500.0,0.00042191,60]
[340370297,1729107238361,-1272.87,0.00042191,60]
[340370298,1729107238395,-239.76051198,0.00042191,60]
[340370299,1729107238429,-619.72,0.00042191,60]
[340370300,1729107238465,-500.0,0.00042191,60]
[340370301,1729107238502,-500.0,0.00042191,60]
[340370302,1729107238537,-507.09615305,0.00042191,60]
[340370303,1729107238570,-500.0,0.00042191,60]
[340370304,1729107238603,-611.53439498,0.00042191,60]
[340370305,1729107238638,-523.64,0.00042191,60]
[340370306,1729107238672,-500.0,0.00042191,60]
[340370307,1729107238706,-500.0,0.00042191,60]
[340370308,1729107238740,-500.0,0.00042191,60]
[340370309,1729107238774,-500.0,0.00042191,60]
[340370310,1729107238811,-500.0,0.00042191,60]
[340370311,1729107238846,-500.0,0.00042191,60]
[340370312,1729107238880,-500.0,0.00042191,30]
[340370313,1729107238915,-1480.6,0.00042191,60]
[340370314,1729107238952,-500.0,0.00042191,60]
[340370315,1729107238990,-500.0,0.00042191,60]
[340370316,1729107239026,-500.0,0.00042191,60]
[340370317,1729107239063,-500.0,0.00042191,60]
[340370318,1729107239103,-1041.4,0.00042191,60]
[340370319,1729107239139,-650.64,0.00042191,60]
[340370320,1729107239173,-500.0,0.00042191,60]
[340370321,1729107239209,-500.0,0.00042191,60]
[340370322,1729107239248,-500.0,0.00042191,60]
[340370323,1729107239283,-500.0,0.00042191,60]
[340370324,1729107239324,-500.0,0.00042191,60]
[340370325,1729107239359,-500.0,0.00042191,60]
[340370326,1729107239393,-524.22904044,0.00042191,60]
[340370327,1729107239429,-543.55798482,0.00042191,60]
[340370328,1729107239465,-500.0,0.00042191,60]
[340370329,1729107239499,-500.0,0.00042191,60]
[340370330,1729107239533,-500.0,0.00042191,60]
[340370331,1729107239572,-500.0,0.00042191,60]
[340370332,1729107239605,-501.5538013,0.00042191,60]
[340370333,1729107239638,-500.0,0.00042191,60]
[340370334,1729107239673,-500.0,0.00042191,60]
[340370335,1729107239705,-500.0,0.00042191,60]
[340370336,1729107239739,-500.0,0.00042191,60]
[340370337,1729107239772,-500.0,0.00042191,60]
[340370338,1729107239808,-250.53867668,0.00042191,60]
[340370339,1729107239846,-500.0,0.00042191,60]
[340370340,1729107239884,-500.0,0.00042191,60]
[340370341,1729107239920,-500.0,0.00042191,60]
[340370342,1729107239958,-497.11605798,0.00042191,60]
[340370343,1729107239994,-510.62,0.00042191,60]
[340370344,1729107240032,-500.0,0.00042191,60]
[340370345,1729107240072,-500.0,0.00042191,60]
[340370346,1729107240114,-510.7570372,0.00042191,60]
[340370347,1729107240155,-500.0,0.00042191,60]
[340370348,1729107240201,-508.52934113,0.00042191,60]
[340370349,1729107240242,-500.0,0.00042191,60]
[340370350,1729107240283,-1228.18,0.00042191,60]
[340370351,1729107240323,-500.0,0.00042191,60]
[340370352,1729107240364,-500.0,0.00042191,60]
[340370353,1729107240406,-588.27742871,0.00042191,60]
[340370354,1729107240449,-1061.56,0.00042191,60]
[340370355,1729107240490,-500.0,0.00042191,60]
[340370356,1729107240530,-500.0,0.00042191,60]
[340370357,1729107240570,-500.0,0.00042191,60]
[340370358,1729107240609,-500.0,0.00042191,60]
[340370359,1729107240648,-500.0,0.00042191,60]
[340370360,1729107240686,-519.5,0.00042191,60]
[340370361,1729107240724,-500.0,0.00042191,60]
[340370362,1729107240763,-500.0,0.00042191,60]
[340370363,1729107240799,-500.0,0.00042191,60]
[340370364,1729107240840,-1644.17,0.00042191,60]
[340370365,1729107240876,-500.0,0.00042191,60]
[340370366,1729107240914,-500.0,0.00042191,60]
[340370367,1729107240951,-500.0,0.00042191,60]
[340370368,1729107240987,-605.90377599,0.00042191,60]
[340370369,1729107241024,-500.0,0.00042191,60]
[340370370,1729107241060,-500.0,0.00042191,60]
[340370371,1729107241101,-192.63227476,0.00042191,60]
[340370372,1729107241140,-500.0,0.00042191,60]
[340370373,1729107241368,-500.0,0.00042191,60]
[340370374,1729107241410,-500.0,0.00042191,60]
[340370375,1729107241448,-510.37497432,0.00042191,60]
[340370376,1729107241487,-500.0,0.00042191,60]
[340370377,1729107241532,-500.0,0.00042191,60]
[340370378,1729107241572,-500.0,0.00042191,60]
[340370379,1729107241609,-500.0,0.00042191,60]
[340370380,1729107241649,-507.9480964,0.00042191,60]